[Event "*** Titled Tuesday Blitz"]
[Site "Chess.com"]
[Date "2020.05.19"]
[Round "1"]
[White "ChessMavenYeti"]
[Black "Sanyura"]
[Result "0-1"]
[WhiteElo "2079"]
[BlackElo "2496"]
[TimeControl "180+1"]
[EndTime "12:01:22 PDT"]
[Termination "Sanyura won by resignation"]

1. g3 {[%clk 0:02:49.2]} 1... Nf6 {[%clk 0:02:55.1]} 2. Nf3 {[%clk 0:02:47.6]}
2... d6 {[%clk 0:02:55.4]} 3. d4 {[%clk 0:02:47]} 3... g6 {[%clk 0:02:55.8]} 4.
b3 {[%clk 0:02:46.9]} 4... Bg7 {[%clk 0:02:56.1]} 5. Bb2 {[%clk 0:02:47.5]} 5...
O-O {[%clk 0:02:56.7]} 6. Bg2 {[%clk 0:02:47.9]} 6... Nbd7 {[%clk 0:02:57.1]} 7.
O-O {[%clk 0:02:48.3]} 7... e5 {[%clk 0:02:57.4]} 8. dxe5 {[%clk 0:02:48.4]}
8... Ng4 {[%clk 0:02:57.4]} 9. Qc1 {[%clk 0:02:43.5]} 9... Ngxe5 {[%clk
0:02:55.9]} 10. Nxe5 {[%clk 0:02:40.6]} 10... Nxe5 {[%clk 0:02:56.8]} 11. f4
{[%clk 0:02:36.8]} 11... Ng4 {[%clk 0:02:54.9]} 12. Bxg7 {[%clk 0:02:37.2]}
12... Kxg7 {[%clk 0:02:55.8]} 13. e4 {[%clk 0:02:37.5]} 13... c6 {[%clk
0:02:55.2]} 14. Rd1 {[%clk 0:02:32.6]} 14... Qb6+ {[%clk 0:02:54.6]} 15. Kh1
{[%clk 0:02:25.6]} 15... Nf2+ {[%clk 0:02:54.4]} 0-1

[Event "*** Titled Tuesday Blitz"]
[Site "Chess.com"]
[Date "2020.05.19"]
[Round "1"]
[White "AlexZambrano"]
[Black "davidkalashian"]
[Result "0-1"]
[WhiteElo "2300"]
[BlackElo "2601"]
[TimeControl "180+1"]
[EndTime "12:02:09 PDT"]
[Termination "davidkalashian won by resignation"]

1. Nf3 {[%clk 0:02:57.8]} 1... Nf6 {[%clk 0:02:59.2]} 2. g3 {[%clk 0:02:55.3]}
2... d5 {[%clk 0:02:59.2]} 3. Bg2 {[%clk 0:02:54.1]} 3... g6 {[%clk 0:02:58.8]}
4. d4 {[%clk 0:02:52.8]} 4... Bg7 {[%clk 0:02:58.8]} 5. O-O {[%clk 0:02:49.4]}
5... O-O {[%clk 0:02:59.2]} 6. c4 {[%clk 0:02:49.7]} 6... c6 {[%clk 0:02:59.3]}
7. cxd5 {[%clk 0:02:50]} 7... cxd5 {[%clk 0:02:59.7]} 8. Nc3 {[%clk 0:02:50.1]}
8... Nc6 {[%clk 0:02:58.3]} 9. Bf4 {[%clk 0:02:50.3]} 9... Bf5 {[%clk 0:02:56]}
10. e3 {[%clk 0:02:50.1]} 10... Ne4 {[%clk 0:02:54.7]} 11. Nxe4 {[%clk 0:02:50]}
11... Bxe4 {[%clk 0:02:54.4]} 12. g4 {[%clk 0:02:50.1]} 12... e6 {[%clk
0:02:52]} 13. h3 {[%clk 0:02:50]} 13... Qb6 {[%clk 0:02:51]} 14. b3 {[%clk
0:02:49.9]} 14... Rac8 {[%clk 0:02:50.7]} 15. Rc1 {[%clk 0:02:50]} 15... Nb4
{[%clk 0:02:49.6]} 16. Qd2 {[%clk 0:02:47.2]} 16... Nd3 {[%clk 0:02:41.8]} 17.
Rc3 {[%clk 0:02:42]} 17... Nxf4 {[%clk 0:02:37.9]} 18. exf4 {[%clk 0:02:42.2]}
18... Bxf3 {[%clk 0:02:31.9]} 19. Bxf3 {[%clk 0:02:35.5]} 19... Qxd4 {[%clk
0:02:31.4]} 20. Rxc8 {[%clk 0:02:27.4]} 20... Qxd2 {[%clk 0:02:28.5]} 21. Rfc1
{[%clk 0:02:27.9]} 0-1

[Event "*** Titled Tuesday Blitz"]
[Site "Chess.com"]
[Date "2020.05.19"]
[Round "1"]
[White "j2806"]
[Black "Benjoneliere44"]
[Result "0-1"]
[WhiteElo "2005"]
[BlackElo "2484"]
[TimeControl "180+1"]
[EndTime "12:02:34 PDT"]
[Termination "Benjoneliere44 won by resignation"]

1. e4 {[%clk 0:02:58.6]} 1... c5 {[%clk 0:02:59.7]} 2. Nf3 {[%clk 0:02:57.6]}
2... d6 {[%clk 0:02:59.6]} 3. d4 {[%clk 0:02:57.7]} 3... cxd4 {[%clk 0:02:59.7]}
4. Nxd4 {[%clk 0:02:58.2]} 4... Nf6 {[%clk 0:03:00.3]} 5. Nc3 {[%clk 0:02:58.6]}
5... g6 {[%clk 0:03:00.4]} 6. Be3 {[%clk 0:02:59]} 6... Bg7 {[%clk 0:03:00.4]}
7. f3 {[%clk 0:02:59.4]} 7... O-O {[%clk 0:03:00.6]} 8. Qd2 {[%clk 0:02:59.6]}
8... Nc6 {[%clk 0:03:00.9]} 9. O-O-O {[%clk 0:02:59.5]} 9... d5 {[%clk
0:03:01.1]} 10. Bh6 {[%clk 0:02:59.5]} 10... Bxh6 {[%clk 0:02:33.3]} 11. Qxh6
{[%clk 0:02:55.4]} 11... Nxd4 {[%clk 0:02:33.9]} 12. Rxd4 {[%clk 0:02:49.9]}
12... e5 {[%clk 0:02:34.1]} 13. Rd1 {[%clk 0:02:32.8]} 13... d4 {[%clk 0:02:31]}
14. f4 {[%clk 0:02:21.4]} 14... Ng4 {[%clk 0:02:24.9]} 15. Qg5 {[%clk
0:01:58.7]} 15... Qxg5 {[%clk 0:02:22.3]} 16. fxg5 {[%clk 0:01:58.6]} 16... dxc3
{[%clk 0:02:12.5]} 0-1

[Event "*** Titled Tuesday Blitz"]
[Site "Chess.com"]
[Date "2020.05.19"]
[Round "1"]
[White "827883"]
[Black "x-3738459472"]
[Result "0-1"]
[WhiteElo "2189"]
[BlackElo "2519"]
[TimeControl "180+1"]
[EndTime "12:02:45 PDT"]
[Termination "x-3738459472 won by resignation"]

1. e4 {[%clk 0:03:00.9]} 1... c5 {[%clk 0:02:58.7]} 2. Nf3 {[%clk 0:03:00.8]}
2... Nc6 {[%clk 0:02:58.3]} 3. d4 {[%clk 0:03:01.3]} 3... cxd4 {[%clk
0:02:59.2]} 4. Nxd4 {[%clk 0:03:01.5]} 4... e5 {[%clk 0:02:59.6]} 5. Nb5 {[%clk
0:03:01.8]} 5... d6 {[%clk 0:02:59.8]} 6. N1c3 {[%clk 0:03:02.2]} 6... a6 {[%clk
0:02:59.9]} 7. Na3 {[%clk 0:03:02.6]} 7... b5 {[%clk 0:03:00.8]} 8. Nd5 {[%clk
0:03:02.4]} 8... Nge7 {[%clk 0:03:01.4]} 9. Be3 {[%clk 0:02:59.6]} 9... Nxd5
{[%clk 0:03:01]} 10. Qxd5 {[%clk 0:02:55.3]} 10... Qc7 {[%clk 0:02:58.5]} 11.
Be2 {[%clk 0:02:49.1]} 11... Bb7 {[%clk 0:02:56.1]} 12. Qd2 {[%clk 0:02:48.8]}
12... Ne7 {[%clk 0:02:54]} 13. f3 {[%clk 0:02:44.1]} 13... d5 {[%clk 0:02:51.3]}
14. exd5 {[%clk 0:02:43.1]} 14... Nxd5 {[%clk 0:02:51.2]} 15. Bf2 {[%clk
0:02:39.9]} 15... Bb4 {[%clk 0:02:13.1]} 16. c3 {[%clk 0:02:31.2]} 16... Nxc3
{[%clk 0:02:13.2]} 17. bxc3 {[%clk 0:02:31.2]} 17... Bxc3 {[%clk 0:02:12.9]} 18.
Nb1 {[%clk 0:02:27.3]} 18... Bxd2+ {[%clk 0:02:09.5]} 19. Nxd2 {[%clk
0:02:27.2]} 19... Rd8 {[%clk 0:02:08.1]} 20. Nb3 {[%clk 0:02:22.2]} 20... Qc3+
{[%clk 0:02:01.8]} 21. Kf1 {[%clk 0:02:21.1]} 21... O-O {[%clk 0:02:01.5]} 22.
Rc1 {[%clk 0:02:20]} 22... Qb2 {[%clk 0:02:01.5]} 0-1

[Event "*** Titled Tuesday Blitz"]
[Site "Chess.com"]
[Date "2020.05.19"]
[Round "1"]
[White "cstevens1"]
[Black "MilanJeremic"]
[Result "1-0"]
[WhiteElo "2568"]
[BlackElo "2270"]
[TimeControl "180+1"]
[EndTime "12:03:33 PDT"]
[Termination "cstevens1 won by resignation"]

1. e4 {[%clk 0:03:00.9]} 1... c6 {[%clk 0:02:59.3]} 2. d4 {[%clk 0:03:00.6]}
2... d5 {[%clk 0:02:57.3]} 3. e5 {[%clk 0:03:00.9]} 3... a6 {[%clk 0:02:56.7]}
4. Be3 {[%clk 0:03:01]} 4... g6 {[%clk 0:02:55.3]} 5. c4 {[%clk 0:03:01.3]} 5...
Bg7 {[%clk 0:02:53.2]} 6. Nc3 {[%clk 0:03:01.4]} 6... h5 {[%clk 0:02:50.2]} 7.
Nf3 {[%clk 0:03:01.6]} 7... Bg4 {[%clk 0:02:48.9]} 8. h3 {[%clk 0:03:01.6]} 8...
Bxf3 {[%clk 0:02:48.6]} 9. Qxf3 {[%clk 0:03:02.5]} 9... e6 {[%clk 0:02:48.6]}
10. Bd3 {[%clk 0:03:02.9]} 10... Ne7 {[%clk 0:02:47.3]} 11. O-O {[%clk
0:03:03.2]} 11... Nd7 {[%clk 0:02:44.1]} 12. Rac1 {[%clk 0:03:02.2]} 12... dxc4
{[%clk 0:02:40.3]} 13. Bxc4 {[%clk 0:03:02]} 13... Nb6 {[%clk 0:02:40.1]} 14.
Bb3 {[%clk 0:03:02.3]} 14... Nbd5 {[%clk 0:02:37.7]} 15. Ne4 {[%clk 0:03:02.7]}
15... O-O {[%clk 0:02:36.8]} 16. Bg5 {[%clk 0:03:01.7]} 16... Qd7 {[%clk
0:02:07.9]} 17. Nf6+ {[%clk 0:02:57.3]} 17... Bxf6 {[%clk 0:01:58.9]} 18. exf6
{[%clk 0:02:57.3]} 18... Nf5 {[%clk 0:01:57.6]} 19. Rcd1 {[%clk 0:02:51.8]}
19... Qc7 {[%clk 0:01:51.8]} 20. g4 {[%clk 0:02:49.3]} 20... hxg4 {[%clk
0:01:43.3]} 21. hxg4 {[%clk 0:02:50.2]} 21... Nd6 {[%clk 0:01:41.1]} 22. Qh3
{[%clk 0:02:22.8]} 22... Ne8 {[%clk 0:01:26.3]} 23. Bxd5 {[%clk 0:02:22.1]}
23... exd5 {[%clk 0:01:25.8]} 24. Kg2 {[%clk 0:02:22.2]} 24... Qd6 {[%clk
0:01:21.3]} 25. Rh1 {[%clk 0:02:21]} 1-0

[Event "*** Titled Tuesday Blitz"]
[Site "Chess.com"]
[Date "2020.05.19"]
[Round "1"]
[White "PauloFanha"]
[Black "plumalka"]
[Result "0-1"]
[WhiteElo "1955"]
[BlackElo "2476"]
[TimeControl "180+1"]
[EndTime "12:03:34 PDT"]
[Termination "plumalka won by resignation"]

1. e4 {[%clk 0:03:00.9]} 1... c5 {[%clk 0:02:59.4]} 2. Nf3 {[%clk 0:02:59.7]}
2... d6 {[%clk 0:02:59.1]} 3. Bb5+ {[%clk 0:02:58.8]} 3... Bd7 {[%clk
0:02:57.9]} 4. Bxd7+ {[%clk 0:02:58.2]} 4... Qxd7 {[%clk 0:02:58.8]} 5. O-O
{[%clk 0:02:58.3]} 5... g6 {[%clk 0:02:55.1]} 6. c3 {[%clk 0:02:56.9]} 6... Bg7
{[%clk 0:02:54.1]} 7. d4 {[%clk 0:02:56.4]} 7... cxd4 {[%clk 0:02:53.9]} 8. cxd4
{[%clk 0:02:55.2]} 8... Nc6 {[%clk 0:02:54.2]} 9. Nc3 {[%clk 0:02:53.4]} 9...
Nf6 {[%clk 0:02:53.9]} 10. e5 {[%clk 0:02:49.9]} 10... dxe5 {[%clk 0:02:49.4]}
11. dxe5 {[%clk 0:02:49.3]} 11... Qxd1 {[%clk 0:02:48.5]} 12. Rxd1 {[%clk
0:02:48.6]} 12... Ng4 {[%clk 0:02:36.2]} 13. e6 {[%clk 0:02:45.9]} 13... fxe6
{[%clk 0:02:34.3]} 14. Nb5 {[%clk 0:02:42.5]} 14... O-O {[%clk 0:02:32.1]} 15.
Nc7 {[%clk 0:02:38.7]} 15... Rad8 {[%clk 0:02:31.6]} 16. Bf4 {[%clk 0:02:23.8]}
16... Rxd1+ {[%clk 0:02:12.5]} 17. Rxd1 {[%clk 0:02:21.5]} 17... Rxf4 {[%clk
0:02:13.4]} 18. Nxe6 {[%clk 0:02:19.4]} 18... Re4 {[%clk 0:02:09.1]} 19. Nc5
{[%clk 0:02:09.6]} 19... Re2 {[%clk 0:02:08.4]} 20. Nxb7 {[%clk 0:02:04.9]}
20... Nd4 {[%clk 0:02:04.3]} 21. Ng5 {[%clk 0:01:48.1]} 21... Nxf2 {[%clk
0:01:59.9]} 22. Nc5 {[%clk 0:01:42.4]} 22... Nxd1 {[%clk 0:01:58.8]} 0-1

[Event "*** Titled Tuesday Blitz"]
[Site "Chess.com"]
[Date "2020.05.19"]
[Round "1"]
[White "damayito"]
[Black "FMVolodymyrSakun"]
[Result "0-1"]
[WhiteElo "1615"]
[BlackElo "2464"]
[TimeControl "180+1"]
[EndTime "12:03:51 PDT"]
[Termination "FMVolodymyrSakun won by resignation"]

1. e4 {[%clk 0:02:59.2]} 1... c5 {[%clk 0:02:58.1]} 2. Nc3 {[%clk 0:02:58.5]}
2... Nc6 {[%clk 0:02:57.6]} 3. f4 {[%clk 0:02:58.2]} 3... g6 {[%clk 0:02:57.6]}
4. Nf3 {[%clk 0:02:57.6]} 4... Bg7 {[%clk 0:02:57.9]} 5. d3 {[%clk 0:02:57.5]}
5... e6 {[%clk 0:02:58.1]} 6. Be2 {[%clk 0:02:57.7]} 6... Nge7 {[%clk
0:02:58.4]} 7. O-O {[%clk 0:02:58.2]} 7... O-O {[%clk 0:02:58.5]} 8. Kh1 {[%clk
0:02:58.5]} 8... d5 {[%clk 0:02:58.4]} 9. exd5 {[%clk 0:02:57.6]} 9... exd5
{[%clk 0:02:57.7]} 10. Rb1 {[%clk 0:02:57.2]} 10... d4 {[%clk 0:02:56.7]} 11.
Ne4 {[%clk 0:02:55.2]} 11... b6 {[%clk 0:02:56.9]} 12. Bd2 {[%clk 0:02:50.8]}
12... Nd5 {[%clk 0:02:55.8]} 13. Ne5 {[%clk 0:02:45.9]} 13... Nxe5 {[%clk
0:02:52.8]} 14. fxe5 {[%clk 0:02:46.1]} 14... Bxe5 {[%clk 0:02:52.9]} 15. Bg4
{[%clk 0:02:39]} 15... f5 {[%clk 0:02:48.3]} 16. Bg5 {[%clk 0:02:36.3]} 16...
Qc7 {[%clk 0:02:36.7]} 17. Bh3 {[%clk 0:02:24.8]} 17... fxe4 {[%clk 0:02:32.6]}
18. dxe4 {[%clk 0:02:25.3]} 18... Bxh3 {[%clk 0:02:28.9]} 19. Rxf8+ {[%clk
0:02:21.1]} 19... Rxf8 {[%clk 0:02:27.9]} 20. exd5 {[%clk 0:02:21.8]} 20... Bd7
{[%clk 0:02:18.6]} 21. Qe2 {[%clk 0:02:20.7]} 21... Qd6 {[%clk 0:02:13]} 22. Re1
{[%clk 0:02:14.7]} 22... Bf6 {[%clk 0:02:07.9]} 23. Bh6 {[%clk 0:02:08.1]} 23...
Re8 {[%clk 0:02:06.4]} 24. Qf2 {[%clk 0:02:06]} 24... Rxe1+ {[%clk 0:02:05.8]}
25. Qxe1 {[%clk 0:02:06.5]} 25... g5 {[%clk 0:01:59.6]} 26. h3 {[%clk
0:01:45.4]} 26... Bd8 {[%clk 0:01:51.8]} 27. Qd2 {[%clk 0:01:36.6]} 27... Qxh6
{[%clk 0:01:50.7]} 0-1

[Event "*** Titled Tuesday Blitz"]
[Site "Chess.com"]
[Date "2020.05.19"]
[Round "1"]
[White "gvanna"]
[Black "MrTattaglia"]
[Result "0-1"]
[WhiteElo "2461"]
[BlackElo "3024"]
[TimeControl "180+1"]
[EndTime "12:03:54 PDT"]
[Termination "MrTattaglia won by resignation"]

1. e4 {[%clk 0:03:00.9]} 1... e5 {[%clk 0:02:55.6]} 2. Nf3 {[%clk 0:02:59.3]}
2... Nc6 {[%clk 0:02:55.8]} 3. Bb5 {[%clk 0:02:59.2]} 3... a6 {[%clk 0:02:54.6]}
4. Ba4 {[%clk 0:02:58.9]} 4... Nf6 {[%clk 0:02:53.8]} 5. O-O {[%clk 0:02:58.1]}
5... b5 {[%clk 0:02:53.6]} 6. Bb3 {[%clk 0:02:57.8]} 6... Be7 {[%clk 0:02:53.5]}
7. Re1 {[%clk 0:02:53.7]} 7... d6 {[%clk 0:02:53.2]} 8. c3 {[%clk 0:02:53.6]}
8... O-O {[%clk 0:02:52.8]} 9. h3 {[%clk 0:02:53.6]} 9... Na5 {[%clk 0:02:52.7]}
10. Bc2 {[%clk 0:02:53.8]} 10... c5 {[%clk 0:02:52.9]} 11. d4 {[%clk 0:02:53.4]}
11... Nd7 {[%clk 0:02:52.6]} 12. Nbd2 {[%clk 0:02:53.1]} 12... exd4 {[%clk
0:02:52.5]} 13. cxd4 {[%clk 0:02:52.9]} 13... Nc6 {[%clk 0:02:53.4]} 14. Nf1
{[%clk 0:02:50.5]} 14... cxd4 {[%clk 0:02:52.9]} 15. Nxd4 {[%clk 0:02:49.9]}
15... Nxd4 {[%clk 0:02:53.8]} 16. Qxd4 {[%clk 0:02:48.9]} 16... Ne5 {[%clk
0:02:54.7]} 17. Ng3 {[%clk 0:02:43.2]} 17... Bxh3 {[%clk 0:02:54.1]} 18. Bf4
{[%clk 0:02:35.1]} 18... Bf6 {[%clk 0:02:50.4]} 19. Qb4 {[%clk 0:02:23.7]} 19...
Bg4 {[%clk 0:02:45.9]} 20. f3 {[%clk 0:02:13.1]} 20... Be6 {[%clk 0:02:44.5]}
21. Rad1 {[%clk 0:02:10.2]} 21... Qb6+ {[%clk 0:02:38.3]} 22. Be3 {[%clk
0:02:07.1]} 22... Qc7 {[%clk 0:02:38.6]} 23. Bb3 {[%clk 0:01:57.2]} 23... Nc4
{[%clk 0:02:34]} 24. Bxc4 {[%clk 0:01:36.2]} 24... Bxc4 {[%clk 0:02:16.3]} 25.
b3 {[%clk 0:01:28.1]} 25... Be6 {[%clk 0:02:15.5]} 26. Qxd6 {[%clk 0:01:27.3]}
26... Qxd6 {[%clk 0:02:15.1]} 27. Rxd6 {[%clk 0:01:26.5]} 27... Be5 {[%clk
0:02:15.6]} 28. Rxe6 {[%clk 0:01:21]} 28... Bxg3 {[%clk 0:02:15.5]} 0-1

[Event "*** Titled Tuesday Blitz"]
[Site "Chess.com"]
[Date "2020.05.19"]
[Round "1"]
[White "VALPARAISO37"]
[Black "Mfcyryd"]
[Result "1-0"]
[WhiteElo "2318"]
[BlackElo "2585"]
[TimeControl "180+1"]
[EndTime "12:03:54 PDT"]
[Termination "VALPARAISO37 won by resignation"]

1. d4 {[%clk 0:03:00.9]} 1... Nf6 {[%clk 0:02:49.6]} 2. c4 {[%clk 0:02:59.9]}
2... e6 {[%clk 0:02:49.5]} 3. Nc3 {[%clk 0:02:59.2]} 3... Bb4 {[%clk 0:02:48.3]}
4. a3 {[%clk 0:02:58.7]} 4... Bxc3+ {[%clk 0:02:47]} 5. bxc3 {[%clk 0:02:58.2]}
5... b6 {[%clk 0:02:47.9]} 6. e3 {[%clk 0:02:52.2]} 6... Bb7 {[%clk 0:02:45.9]}
7. f3 {[%clk 0:02:50.5]} 7... O-O {[%clk 0:02:45.2]} 8. Bd3 {[%clk 0:02:50.5]}
8... d5 {[%clk 0:02:23.1]} 9. Ne2 {[%clk 0:02:49.2]} 9... c5 {[%clk 0:02:19.9]}
10. cxd5 {[%clk 0:02:48.6]} 10... exd5 {[%clk 0:02:19.4]} 11. O-O {[%clk
0:02:49.2]} 11... Re8 {[%clk 0:01:58.2]} 12. Ng3 {[%clk 0:02:48.4]} 12... Nc6
{[%clk 0:01:56.7]} 13. Ra2 {[%clk 0:02:44.1]} 13... Na5 {[%clk 0:01:50.4]} 14.
Raf2 {[%clk 0:02:41.5]} 14... c4 {[%clk 0:01:48.9]} 15. Bc2 {[%clk 0:02:39.5]}
15... Bc6 {[%clk 0:01:47.2]} 16. e4 {[%clk 0:02:37.8]} 16... Nb7 {[%clk
0:01:40.7]} 17. e5 {[%clk 0:02:35.6]} 17... Nd7 {[%clk 0:01:39.6]} 18. f4 {[%clk
0:02:35.5]} 18... Nf8 {[%clk 0:01:40.2]} 19. Qh5 {[%clk 0:02:30]} 19... b5
{[%clk 0:01:38.7]} 20. f5 {[%clk 0:02:27.6]} 20... a5 {[%clk 0:01:36.1]} 21. f6
{[%clk 0:02:24.8]} 21... g6 {[%clk 0:01:30.3]} 22. Qh6 {[%clk 0:02:23.6]} 22...
Ne6 {[%clk 0:01:31]} 23. Nh5 {[%clk 0:02:21]} 23... Kh8 {[%clk 0:01:29.9]} 24.
Ng7 {[%clk 0:02:07.3]} 24... Rg8 {[%clk 0:01:27.2]} 25. Nxe6 {[%clk 0:02:04.2]}
25... fxe6 {[%clk 0:01:25.6]} 26. f7 {[%clk 0:02:04]} 1-0

[Event "*** Titled Tuesday Blitz"]
[Site "Chess.com"]
[Date "2020.05.19"]
[Round "1"]
[White "Pultis"]
[Black "Bacyanide"]
[Result "1-0"]
[WhiteElo "2777"]
[BlackElo "2408"]
[TimeControl "180+1"]
[EndTime "12:04:00 PDT"]
[Termination "Pultis won by resignation"]

1. d4 {[%clk 0:03:00.9]} 1... d5 {[%clk 0:02:59.4]} 2. c4 {[%clk 0:03:01.8]}
2... e6 {[%clk 0:02:59.5]} 3. Nf3 {[%clk 0:03:02.4]} 3... Nf6 {[%clk 0:02:58.6]}
4. Nc3 {[%clk 0:03:02.9]} 4... c5 {[%clk 0:02:58.7]} 5. cxd5 {[%clk 0:03:02.8]}
5... exd5 {[%clk 0:02:58.7]} 6. e4 {[%clk 0:03:03.4]} 6... dxe4 {[%clk
0:02:55.8]} 7. Ng5 {[%clk 0:03:03.4]} 7... Qxd4 {[%clk 0:02:33.5]} 8. Qb3 {[%clk
0:03:00.4]} 8... Be6 {[%clk 0:02:07.3]} 9. Nxe6 {[%clk 0:02:48.8]} 9... fxe6
{[%clk 0:02:08.2]} 10. Qxe6+ {[%clk 0:02:46.8]} 10... Be7 {[%clk 0:02:07.1]} 11.
Qc8+ {[%clk 0:02:45.5]} 11... Qd8 {[%clk 0:02:00.8]} 12. Qxb7 {[%clk 0:02:45.9]}
12... Nbd7 {[%clk 0:01:59.9]} 13. Bc4 {[%clk 0:02:41.4]} 13... Ne5 {[%clk
0:01:35.9]} 14. Bb5+ {[%clk 0:02:40.9]} 14... Kf7 {[%clk 0:01:31.9]} 15. O-O
{[%clk 0:02:37.4]} 15... Rb8 {[%clk 0:01:28.6]} 16. Qxa7 {[%clk 0:02:37.5]}
16... Ra8 {[%clk 0:01:17.1]} 17. Qb7 {[%clk 0:02:37.8]} 17... Rb8 {[%clk
0:01:17.3]} 18. Qa6 {[%clk 0:02:38.4]} 18... Ra8 {[%clk 0:01:17.5]} 19. Bc4+
{[%clk 0:02:39]} 19... Kg6 {[%clk 0:01:14.8]} 20. Qe6 {[%clk 0:02:36.8]} 20...
Nxc4 {[%clk 0:01:12.5]} 21. Qxc4 {[%clk 0:02:36.4]} 21... Qd4 {[%clk 0:01:12.5]}
22. Qe2 {[%clk 0:02:36.7]} 22... Bd6 {[%clk 0:01:10.9]} 23. Rd1 {[%clk
0:02:35.3]} 23... Qe5 {[%clk 0:01:11.1]} 24. f4 {[%clk 0:02:34.5]} 24... exf3
{[%clk 0:01:10.8]} 25. Qd3+ {[%clk 0:02:34.8]} 25... Qf5 {[%clk 0:00:50.7]} 26.
Qxf5+ {[%clk 0:02:33.7]} 26... Kxf5 {[%clk 0:00:51]} 27. Rxd6 {[%clk 0:02:34.6]}
27... Rad8 {[%clk 0:00:48.5]} 28. Rxd8 {[%clk 0:02:33.7]} 28... Rxd8 {[%clk
0:00:49.4]} 29. Be3 {[%clk 0:02:32.7]} 29... Rd3 {[%clk 0:00:46.1]} 1-0

[Event "*** Titled Tuesday Blitz"]
[Site "Chess.com"]
[Date "2020.05.19"]
[Round "1"]
[White "Akhayan"]
[Black "Bathory44"]
[Result "0-1"]
[WhiteElo "2289"]
[BlackElo "2583"]
[TimeControl "180+1"]
[EndTime "12:04:07 PDT"]
[Termination "Bathory44 won by resignation"]

1. d4 {[%clk 0:02:59.4]} 1... Nf6 {[%clk 0:02:59.2]} 2. Nf3 {[%clk 0:02:59.3]}
2... g6 {[%clk 0:02:59.6]} 3. g3 {[%clk 0:02:59.1]} 3... Bg7 {[%clk 0:03:00.1]}
4. Bg2 {[%clk 0:02:59.5]} 4... O-O {[%clk 0:03:00.8]} 5. O-O {[%clk 0:02:58.8]}
5... d6 {[%clk 0:03:00.8]} 6. c4 {[%clk 0:02:59.2]} 6... c5 {[%clk 0:03:00.4]}
7. Nc3 {[%clk 0:02:57.2]} 7... Nc6 {[%clk 0:03:00]} 8. d5 {[%clk 0:02:55.6]}
8... Na5 {[%clk 0:02:59.7]} 9. Nd2 {[%clk 0:02:56.1]} 9... a6 {[%clk 0:02:59.6]}
10. Qc2 {[%clk 0:02:53.6]} 10... Rb8 {[%clk 0:02:59.3]} 11. b3 {[%clk
0:02:51.5]} 11... b5 {[%clk 0:02:59.3]} 12. cxb5 {[%clk 0:02:50.7]} 12... axb5
{[%clk 0:02:59.1]} 13. Bb2 {[%clk 0:02:51.2]} 13... b4 {[%clk 0:02:56]} 14. Nce4
{[%clk 0:02:46.6]} 14... Nxd5 {[%clk 0:02:50.9]} 15. Bxg7 {[%clk 0:02:45.9]}
15... Kxg7 {[%clk 0:02:51.3]} 16. Rfd1 {[%clk 0:02:31.5]} 16... f5 {[%clk
0:02:08.9]} 17. Ng5 {[%clk 0:02:26.1]} 17... Nc3 {[%clk 0:02:06.4]} 18. Re1
{[%clk 0:02:23]} 18... h6 {[%clk 0:02:03]} 19. Ngf3 {[%clk 0:02:19.8]} 19... Ba6
{[%clk 0:01:59.9]} 20. Bf1 {[%clk 0:02:15.5]} 20... e5 {[%clk 0:01:55.5]} 21.
Nh4 {[%clk 0:02:06.4]} 21... Nc6 {[%clk 0:01:52.3]} 22. e3 {[%clk 0:02:02.1]}
22... Bxf1 {[%clk 0:01:51.5]} 23. Rxf1 {[%clk 0:02:01.8]} 23... Qd7 {[%clk
0:01:47.4]} 24. Kg2 {[%clk 0:01:59.3]} 24... d5 {[%clk 0:01:45.2]} 25. Ndf3
{[%clk 0:01:56.4]} 25... g5 {[%clk 0:01:41.2]} 0-1

[Event "*** Titled Tuesday Blitz"]
[Site "Chess.com"]
[Date "2020.05.19"]
[Round "1"]
[White "Soltan49"]
[Black "pfalcon1949"]
[Result "0-1"]
[WhiteElo "2458"]
[BlackElo "1959"]
[TimeControl "180+1"]
[EndTime "12:04:08 PDT"]
[Termination "pfalcon1949 won on time"]

1. e4 {[%clk 0:02:57]} 1... e6 {[%clk 0:02:59]} 2. d4 {[%clk 0:02:56.8]} 2... d5
{[%clk 0:02:59.2]} 3. Nd2 {[%clk 0:02:55]} 3... c5 {[%clk 0:02:58.3]} 4. exd5
{[%clk 0:02:53.8]} 4... exd5 {[%clk 0:02:57.7]} 5. dxc5 {[%clk 0:02:47]} 5...
Bxc5 {[%clk 0:02:56.2]} 6. Ngf3 {[%clk 0:02:46.9]} 6... Ne7 {[%clk 0:02:55.5]}
7. Bb5+ {[%clk 0:02:43.1]} 7... Nbc6 {[%clk 0:02:55.5]} 8. O-O {[%clk
0:02:40.7]} 8... O-O {[%clk 0:02:55.3]} 9. b3 {[%clk 0:02:37.5]} 9... Bg4 {[%clk
0:02:48.9]} 10. Bb2 {[%clk 0:02:34.2]} 10... d4 {[%clk 0:02:40.5]} 11. h3 {[%clk
0:02:32.2]} 11... Bh5 {[%clk 0:02:39.3]} 12. Ne4 {[%clk 0:02:30.9]} 12... Bb6
{[%clk 0:02:34.4]} 0-1